[Event "Cerrado Blitz Quart 2018"]
[Site "Quart (Valencia), Spain"]
[Date "2018.08.30"]
[Round "5.3"]
[White "Chernikov, Vladimir"]
[Black "Vega Gutierrez, Sabrina"]
[Result "0-1"]
[TimeControl "7 minutos +3s por jugada"]
[BlackTitle "IM"]
[WhiteFideId "14112914"]
[BlackFideId "2219026"]
[WhiteElo "2035"]
[BlackElo "2188"]

1. b3 {[%clk 00:07:04]} e5 {[%clk 00:07:01]} {[%emt 00:00:05]} 2. Bb2 {[%clk
00:07:06]} d6 {[%clk 00:07:01]} {[%emt 00:00:03]} 3. e3 {[%clk 00:07:07]}
{[%emt 00:00:02]} f5 {[%clk 00:07:01]} {[%emt 00:00:03]} 4. d4 {[%clk
00:07:04]} {[%emt 00:00:06]} e4 {[%clk 00:06:38]} {[%emt 00:00:26]} 5. Nh3
{[%clk 00:07:05]} {[%emt 00:00:02]} c6 {[%clk 00:05:56]} {[%emt 00:00:46]} 6.
Nf4 {[%clk 00:06:58]} {[%emt 00:00:10]} Nf6 {[%clk 00:05:56]} {[%emt 00:00:03]}
7. d5 {[%clk 00:06:59]} {[%emt 00:00:02]} Be7 {[%clk 00:05:51]} {[%emt
00:00:07]} 8. c4 {[%clk 00:06:38]} {[%emt 00:00:24]} O-O {[%clk 00:05:51]}
{[%emt 00:00:03]} 9. Nc3 {[%clk 00:06:39]} {[%emt 00:00:02]} Na6 {[%clk
00:05:53]} {[%emt 00:00:01]} 10. Be2 {[%clk 00:06:31]} {[%emt 00:00:11]} Nc7
{[%clk 00:05:52]} {[%emt 00:00:04]} 11. h4 {[%clk 00:06:00]} {[%emt 00:00:34]}
c5 {[%clk 00:05:40]} {[%emt 00:00:15]} 12. a3 {[%clk 00:05:48]} {[%emt
00:00:15]} Nd7 {[%clk 00:05:05]} {[%emt 00:00:37]} 13. Qd2 {[%clk 00:04:43]}
{[%emt 00:01:08]} Bf6 {[%clk 00:04:53]} {[%emt 00:00:14]} 14. O-O-O {[%clk
00:04:33]} {[%emt 00:00:12]} Ne5 {[%clk 00:04:53]} {[%emt 00:00:03]} 15. g3
{[%clk 00:04:13]} {[%emt 00:00:24]} a6 {[%clk 00:04:32]} {[%emt 00:00:24]} 16.
Na4 {[%clk 00:04:03]} {[%emt 00:00:12]} b5 {[%clk 00:04:15]} {[%emt 00:00:20]}
17. Nb6 {[%clk 00:04:03]} {[%emt 00:00:03]} Rb8 {[%clk 00:04:17]} {[%emt
00:00:02]} 18. Nxc8 {[%clk 00:04:01]} {[%emt 00:00:04]} Qxc8 {[%clk 00:04:17]}
{[%emt 00:00:04]} 19. Nh5 {[%clk 00:03:55]} {[%emt 00:00:10]} bxc4 {[%clk
00:03:43]} {[%emt 00:00:38]} 20. Nxf6+ {[%clk 00:03:55]} {[%emt 00:00:02]} Rxf6
{[%clk 00:03:39]} {[%emt 00:00:07]} 21. Bxe5 {[%clk 00:03:52]} {[%emt
00:00:06]} dxe5 {[%clk 00:03:41]} {[%emt 00:00:02]} 22. d6 {[%clk 00:03:26]}
{[%emt 00:00:29]} Nb5 {[%clk 00:03:39]} {[%emt 00:00:05]} 23. Bxc4+ {[%clk
00:03:24]} {[%emt 00:00:04]} Kh8 {[%clk 00:03:41]} {[%emt 00:00:02]} 24. d7
{[%clk 00:03:11]} {[%emt 00:00:16]} Qd8 {[%clk 00:03:42]} {[%emt 00:00:01]} 25.
Bxb5 {[%clk 00:02:17]} {[%emt 00:00:57]} Rxb5 {[%clk 00:03:18]} {[%emt
00:00:27]} 26. Qd5 {[%clk 00:02:18]} c4 {[%clk 00:02:58]} {[%emt 00:00:24]} 27.
Qxc4 {[%clk 00:02:02]} {[%emt 00:00:19]} Rb7 {[%clk 00:02:59]} {[%emt
00:00:02]} 28. Qd5 {[%clk 00:01:33]} {[%emt 00:00:33]} Rfb6 {[%clk 00:02:34]}
{[%emt 00:00:27]} 29. b4 {[%clk 00:01:28]} {[%emt 00:00:08]} Rc7+ {[%clk
00:02:25]} {[%emt 00:00:12]} 30. Kb2 {[%clk 00:01:27]} {[%emt 00:00:04]} Rbb7
{[%clk 00:02:27]} {[%emt 00:00:02]} 31. Qa5 {[%clk 00:01:06]} {[%emt 00:00:24]}
h6 {[%clk 00:01:34]} {[%emt 00:00:56]} 32. Rd2 {[%clk 00:00:58]} {[%emt
00:00:10]} Rb8 {[%clk 00:00:19]} {[%emt 00:01:19]} 33. Rhd1 {[%clk 00:00:41]}
{[%emt 00:00:20]} Rbb7 {[%clk 00:00:21]} {[%emt 00:00:02]} 34. Ka1 {[%clk
00:00:24]} {[%emt 00:00:20]} Ra7 {[%clk 00:00:23]} 35. Qxe5 {[%clk 00:00:05]}
{[%emt 00:00:22]} Rxd7 {[%clk 00:00:19]} {[%emt 00:00:07]} 36. Rd6 {[%clk
00:00:04]} {[%emt 00:00:04]} Rxd6 {[%clk 00:00:05]} {[%emt 00:00:18]} 37. Qxd6
{[%clk 00:00:05]} {[%emt 00:00:02]} Qc8 {[%clk 00:00:05]} {[%emt 00:00:03]} 38.
Qd8+ {[%clk 00:00:06]} {[%emt 00:00:02]} Qxd8 {[%clk 00:00:07]} {[%emt
00:00:01]} 39. Rxd8+ {[%clk 00:00:08]} Kh7 {[%clk 00:00:09]} 40. h5 {[%clk
00:00:09]} {[%emt 00:00:02]} g6 {[%clk 00:00:09]} {[%emt 00:00:04]} 41. hxg6+
{[%clk 00:00:10]} {[%emt 00:00:01]} Kxg6 {[%clk 00:00:10]} {[%emt 00:00:01]} 42.
Rg8+ {[%clk 00:00:12]} {[%emt 00:00:01]} Kf6 {[%clk 00:00:10]} {[%emt
00:00:04]} 43. Kb2 {[%clk 00:00:14]} {[%emt 00:00:02]} Rc7 {[%clk 00:00:12]} 44.
Kb3 {[%clk 00:00:14]} {[%emt 00:00:03]} h5 {[%clk 00:00:11]} {[%emt 00:00:04]}
45. Rh8 {[%clk 00:00:15]} {[%emt 00:00:02]} Kg5 {[%clk 00:00:13]} {[%emt
00:00:01]} 46. Rg8+ {[%clk 00:00:16]} {[%emt 00:00:03]} Kf6 {[%clk 00:00:15]}
47. Rh8 {[%clk 00:00:13]} {[%emt 00:00:05]} Kg5 {[%clk 00:00:17]} 48. Ra8
{[%clk 00:00:14]} {[%emt 00:00:02]} Rc6 {[%clk 00:00:18]} {[%emt 00:00:03]} 49.
Ka4 {[%clk 00:00:14]} {[%emt 00:00:03]} Kg4 {[%clk 00:00:14]} {[%emt 00:00:06]}
50. Ka5 {[%clk 00:00:14]} {[%emt 00:00:03]} Rc3 {[%clk 00:00:14]} {[%emt
00:00:04]} 51. a4 {[%clk 00:00:15]} {[%emt 00:00:02]} Kf3 {[%clk 00:00:06]}
{[%emt 00:00:11]} 52. Rf8 {[%clk 00:00:17]} {[%emt 00:00:02]} Kxf2 {[%clk
00:00:07]} {[%emt 00:00:02]} 53. Rxf5+ {[%clk 00:00:19]} {[%emt 00:00:01]} Kxe3
{[%clk 00:00:08]} 54. Kxa6 {[%clk 00:00:20]} {[%emt 00:00:02]} Rc4 {[%clk
00:00:06]} {[%emt 00:00:05]} 55. Kb5 {[%clk 00:00:17]} {[%emt 00:00:06]} Kd3
{[%clk 00:00:04]} {[%emt 00:00:05]} 56. Rd5+ {[%clk 00:00:16]} {[%emt
00:00:02]} Rd4 {[%clk 00:00:06]} {[%emt 00:00:03]} 57. Rxh5 {[%clk 00:00:10]}
{[%emt 00:00:09]} Kc3 {[%clk 00:00:09]} 58. Rc5+ {[%clk 00:00:10]} {[%emt
00:00:03]} Kb3 {[%clk 00:00:11]} 59. Ka5 {[%clk 00:00:07]} {[%emt 00:00:06]}
Rxb4 {[%clk 00:00:12]} {[%emt 00:00:02]} 60. Rb5 {[%clk 00:00:05]} {[%emt
00:00:05]} Rxb5+ {[%clk 00:00:12]} {[%emt 00:00:03]} 61. axb5 {[%clk 00:00:07]}
e3 {[%clk 00:00:10]} {[%emt 00:00:05]} 62. b6 {[%clk 00:00:09]} e2 {[%clk
00:00:12]} 63. b7 {[%clk 00:00:11]} {[%emt 00:00:01]} e1=Q+ {[%clk 00:00:13]}
{[%emt 00:00:02]} 64. Ka6 {[%clk 00:00:12]} {[%emt 00:00:01]} Qe6+ {[%clk
00:00:13]} {[%emt 00:00:03]} 65. Ka7 {[%clk 00:00:14]} {[%emt 00:00:01]} Qd7
{[%clk 00:00:13]} {[%emt 00:00:03]} 66. Ka8 {[%clk 00:00:15]} {[%emt 00:00:02]}
Qc6 {[%clk 00:00:15]} {[%emt 00:00:02]} 67. g4 {[%clk 00:00:16]} {[%emt
00:00:02]} Kb4 {[%clk 00:00:16]} {[%emt 00:00:02]} 68. g5 {[%clk 00:00:17]} Kb5
{[%clk 00:00:18]} {[%emt 00:00:02]} 69. Ka7 {[%clk 00:00:19]} {[%emt 00:00:02]}
Qd7 {[%clk 00:00:15]} {[%emt 00:00:05]} 70. Ka8 {[%clk 00:00:20]} {[%emt
00:00:02]} Qd5 {[%clk 00:00:11]} {[%emt 00:00:07]} 71. Ka7 {[%clk 00:00:21]}
{[%emt 00:00:02]} Qc5+ {[%clk 00:00:08]} {[%emt 00:00:06]} 72. Ka8 {[%clk
00:00:22]} {[%emt 00:00:02]} Qd5 {[%clk 00:00:06]} {[%emt 00:00:05]} 73. Ka7
{[%clk 00:00:23]} {[%emt 00:00:02]} Qd4+ {[%clk 00:00:08]} 74. Ka8 {[%clk
00:00:24]} {[%emt 00:00:02]} Kb6 {[%clk 00:00:09]} 0-1

[Event "Cerrado Blitz Quart 2018"]
[Site "Quart (Valencia), Spain"]
[Date "2018.08.30"]
[Round "5.4"]
[White "Ordoñez Carrasco, Jorge"]
[Black "Galvan Cipriani, Viviana"]
[Result "0-1"]
[TimeControl "7 minutos +3s por jugada"]
[BlackTitle "WFM"]
[WhiteFideId "24529826"]
[BlackFideId "32041144"]
[WhiteElo "1531"]
[BlackElo "1948"]

1. e4 {[%clk 00:07:04]} c5 {[%clk 00:07:05]} {[%emt 00:00:02]} 2. Nf3 {[%clk
00:07:06]} Nc6 {[%clk 00:07:07]} {[%emt 00:00:03]} 3. d4 {[%clk 00:07:07]}
{[%emt 00:00:02]} cxd4 {[%clk 00:07:07]} {[%emt 00:00:03]} 4. Nxd4 {[%clk
00:07:09]} Nf6 {[%clk 00:07:09]} {[%emt 00:00:02]} 5. Nc3 {[%clk 00:07:07]}
{[%emt 00:00:04]} e5 {[%clk 00:07:10]} {[%emt 00:00:02]} 6. Nb3 {[%clk
00:07:05]} {[%emt 00:00:05]} Bb4 {[%clk 00:06:59]} {[%emt 00:00:13]} 7. f3
{[%clk 00:06:58]} {[%emt 00:00:09]} d5 {[%clk 00:06:52]} {[%emt 00:00:10]} 8.
exd5 {[%clk 00:06:44]} {[%emt 00:00:17]} Nxd5 {[%clk 00:06:52]} {[%emt
00:00:03]} 9. Bd2 {[%clk 00:06:38]} {[%emt 00:00:09]} Nxc3 {[%clk 00:05:47]}
{[%emt 00:01:09]} 10. Bxc3 {[%clk 00:06:38]} {[%emt 00:00:02]} Bxc3+ {[%clk
00:05:47]} {[%emt 00:00:03]} 11. bxc3 {[%clk 00:06:38]} {[%emt 00:00:03]} Qh4+
{[%clk 00:05:38]} {[%emt 00:00:12]} 12. g3 {[%clk 00:06:27]} {[%emt 00:00:13]}
Qe7 {[%clk 00:05:38]} {[%emt 00:00:03]} 13. Bd3 {[%clk 00:06:02]} {[%emt
00:00:28]} O-O {[%clk 00:05:37]} {[%emt 00:00:04]} 14. Qd2 {[%clk 00:05:31]}
{[%emt 00:00:34]} Bh3 {[%clk 00:04:51]} {[%emt 00:00:50]} 15. Kf2 {[%clk
00:05:20]} {[%emt 00:00:12]} Rad8 {[%clk 00:04:20]} {[%emt 00:00:35]} 16. Qe3
{[%clk 00:04:54]} {[%emt 00:00:28]} f5 {[%clk 00:03:54]} {[%emt 00:00:30]} 17.
Rhe1 {[%clk 00:04:34]} {[%emt 00:00:23]} Kh8 {[%clk 00:03:23]} {[%emt
00:00:34]} 18. Rab1 {[%clk 00:03:55]} {[%emt 00:00:43]} Qf6 {[%clk 00:03:03]}
{[%emt 00:00:23]} 19. Bf1 {[%clk 00:03:41]} {[%emt 00:00:16]} Bxf1 {[%clk
00:02:52]} {[%emt 00:00:13]} 20. Rxf1 {[%clk 00:03:40]} {[%emt 00:00:05]} b6
{[%clk 00:02:47]} {[%emt 00:00:09]} 21. Rbd1 {[%clk 00:02:55]} {[%emt
00:00:47]} Rc8 {[%clk 00:02:48]} {[%emt 00:00:02]} 22. Rd7 {[%clk 00:02:28]}
{[%emt 00:00:30]} f4 {[%clk 00:01:49]} {[%emt 00:01:02]} 23. Qe4 {[%clk
00:01:53]} {[%emt 00:00:35]} Ne7 {[%clk 00:01:23]} {[%emt 00:00:32]} 24. Rfd1
{[%clk 00:01:15]} {[%emt 00:00:40]} fxg3+ {[%clk 00:01:10]} {[%emt 00:00:17]}
25. hxg3 {[%clk 00:01:17]} {[%emt 00:00:01]} Rxc3 {[%clk 00:01:10]} {[%emt
00:00:03]} 26. Rd8 {[%clk 00:00:45]} {[%emt 00:00:35]} Rxf3+ {[%clk 00:01:00]}
{[%emt 00:00:13]} 27. Kg2 {[%clk 00:00:42]} {[%emt 00:00:05]} Rf2+ {[%clk
00:00:57]} {[%emt 00:00:06]} 28. Kg1 {[%clk 00:00:43]} {[%emt 00:00:02]} Rf1+
{[%clk 00:00:35]} {[%emt 00:00:25]} 29. Kh2 {[%clk 00:00:27]} {[%emt 00:00:18]}
Qf2+ {[%clk 00:00:10]} {[%emt 00:00:30]} 30. Qg2 {[%clk 00:00:20]} {[%emt
00:00:10]} Qxg2+ {[%clk 00:00:08]} {[%emt 00:00:04]} 31. Kxg2 {[%clk 00:00:22]}
R1f2+ {[%clk 00:00:07]} {[%emt 00:00:04]} 32. Kh3 {[%emt 00:00:23]} 0-1

[Event "Cerrado Blitz Quart 2018"]
[Site "Quart (Valencia), Spain"]
[Date "2018.08.30"]
[Round "5.5"]
[White "Kovacevic, Slobodan"]
[Black "Lara Lopez, Sergio"]
[Result "1-0"]
[TimeControl "7 minutos +3s por jugada"]
[WhiteTitle "IM"]
[WhiteFideId "902152"]
[BlackFideId "2268400"]
[WhiteElo "2418"]
[BlackElo "2165"]

1. d4 {[%clk 00:07:05]} e6 {[%clk 00:07:05]} {[%emt 00:00:02]} 2. Nf3 {[%clk
00:07:07]} {[%emt 00:00:01]} Nf6 {[%clk 00:07:06]} {[%emt 00:00:03]} 3. Bf4
{[%clk 00:07:08]} b6 {[%clk 00:07:04]} {[%emt 00:00:05]} 4. Nbd2 {[%clk
00:07:07]} {[%emt 00:00:04]} Bb7 {[%clk 00:07:06]} {[%emt 00:00:02]} 5. e3
{[%clk 00:07:09]} d6 {[%clk 00:07:06]} {[%emt 00:00:03]} 6. c3 {[%clk
00:07:06]} {[%emt 00:00:06]} Nbd7 {[%clk 00:06:49]} {[%emt 00:00:20]} 7. h3
{[%clk 00:07:06]} {[%emt 00:00:03]} Ne4 {[%clk 00:06:47]} {[%emt 00:00:06]} 8.
Nxe4 {[%clk 00:06:54]} {[%emt 00:00:15]} Bxe4 {[%clk 00:06:48]} {[%emt
00:00:02]} 9. a4 {[%clk 00:06:51]} {[%emt 00:00:06]} h6 {[%clk 00:06:23]}
{[%emt 00:00:28]} 10. Ba6 {[%clk 00:06:51]} {[%emt 00:00:04]} g5 {[%clk
00:06:09]} {[%emt 00:00:16]} 11. Bh2 {[%clk 00:06:50]} {[%emt 00:00:04]} Bg7
{[%clk 00:06:05]} {[%emt 00:00:07]} 12. O-O {[%clk 00:06:51]} {[%emt 00:00:02]}
O-O {[%clk 00:06:03]} {[%emt 00:00:05]} 13. Nd2 {[%clk 00:06:52]} {[%emt
00:00:02]} Bg6 {[%clk 00:05:46]} {[%emt 00:00:19]} 14. e4 {[%clk 00:06:52]}
{[%emt 00:00:03]} Kh8 {[%clk 00:05:31]} {[%emt 00:00:19]} 15. f4 {[%clk
00:06:43]} {[%emt 00:00:12]} f5 {[%clk 00:05:32]} {[%emt 00:00:03]} 16. Qe2
{[%clk 00:06:26]} {[%emt 00:00:19]} Qe7 {[%clk 00:05:25]} {[%emt 00:00:10]} 17.
Rae1 {[%clk 00:06:21]} {[%emt 00:00:08]} Qf7 {[%clk 00:04:40]} {[%emt
00:00:49]} 18. e5 {[%clk 00:06:14]} {[%emt 00:00:10]} dxe5 {[%emt 00:00:32]} 19.
dxe5 {[%clk 00:05:49]} Nc5 {[%clk 00:04:36]} {[%emt 00:00:05]} 20. Bb5 {[%clk
00:05:50]} {[%emt 00:00:02]} a6 {[%clk 00:04:33]} {[%emt 00:00:06]} 21. Bc6
{[%clk 00:05:51]} {[%emt 00:00:02]} Rad8 {[%clk 00:04:36]} 22. b4 {[%clk
00:05:53]} {[%emt 00:00:01]} Nd3 {[%clk 00:04:33]} {[%emt 00:00:06]} 23. Rd1
{[%clk 00:05:45]} {[%emt 00:00:11]} gxf4 {[%clk 00:04:07]} {[%emt 00:00:29]} 24.
Nf3 {[%clk 00:05:40]} {[%emt 00:00:08]} Bh5 {[%clk 00:03:25]} {[%emt 00:00:45]}
25. Rxd3 {[%clk 00:05:40]} {[%emt 00:00:03]} 1-0

[Event "Cerrado Blitz Quart 2018"]
[Site "Quart (Valencia), Spain"]
[Date "2018.08.30"]
[Round "6.1"]
[White "Pena Riasco, Alexander"]
[Black "Lara Lopez, Sergio"]
[Result "1-0"]
[TimeControl "7 minutos +3s por jugada"]
[WhiteTitle "FM"]
[WhiteFideId "4403339"]
[BlackFideId "2268400"]
[WhiteElo "2119"]
[BlackElo "2165"]

1. d4 {[%clk 00:07:06]} e6 {[%clk 00:07:05]} {[%emt 00:00:11]} 2. Bf4 {[%clk
00:07:06]} {[%emt 00:00:04]} Nf6 {[%clk 00:07:06]} 3. e3 {[%clk 00:07:08]} b6
{[%clk 00:07:08]} 4. Nf3 {[%clk 00:07:08]} Bb7 {[%clk 00:07:10]} {[%emt
00:00:03]} 5. h3 {[%clk 00:07:09]} d6 {[%clk 00:07:12]} 6. Bd3 {[%clk
00:07:06]} {[%emt 00:00:07]} Nbd7 {[%clk 00:07:13]} {[%emt 00:00:03]} 7. O-O
{[%clk 00:07:01]} {[%emt 00:00:09]} Ne4 {[%clk 00:07:15]} {[%emt 00:00:04]} 8.
Nbd2 {[%clk 00:06:51]} {[%emt 00:00:05]} Ndf6 {[%clk 00:07:17]} 9. a4 {[%clk
00:06:45]} {[%emt 00:00:16]} a6 {[%clk 00:07:12]} {[%emt 00:00:04]} 10. a5
{[%clk 00:06:23]} {[%emt 00:00:23]} b5 {[%clk 00:07:12]} {[%emt 00:00:20]} 11.
c4 {[%clk 00:06:23]} bxc4 {[%clk 00:07:06]} {[%emt 00:00:13]} 12. Nxc4 {[%clk
00:06:11]} Be7 {[%clk 00:07:03]} {[%emt 00:00:09]} 13. Qc2 {[%clk 00:05:32]}
{[%emt 00:00:41]} O-O {[%clk 00:06:59]} {[%emt 00:00:06]} 14. Rfc1 {[%clk
00:05:31]} {[%emt 00:00:03]} Rc8 {[%clk 00:06:48]} {[%emt 00:00:22]} 15. Qe2
{[%clk 00:05:11]} {[%emt 00:00:11]} c5 {[%clk 00:06:36]} {[%emt 00:00:16]} 16.
Nb6 {[%clk 00:05:03]} {[%emt 00:00:36]} Rc6 {[%clk 00:05:42]} {[%emt 00:01:06]}
17. Bxa6 {[%clk 00:04:58]} Bxa6 {[%clk 00:05:43]} 18. Qxa6 {[%clk 00:05:00]}
{[%emt 00:00:04]} Nd5 {[%clk 00:05:25]} {[%emt 00:00:03]} 19. Qb5 {[%clk
00:04:47]} {[%emt 00:00:07]} Nb4 {[%clk 00:04:53]} {[%emt 00:00:35]} 20. Rc4
{[%clk 00:04:08]} {[%emt 00:00:42]} d5 {[%clk 00:02:33]} {[%emt 00:02:23]} 21.
Rxb4 {[%clk 00:04:03]} {[%emt 00:00:14]} Rxb6 {[%clk 00:02:35]} 22. axb6 {[%clk
00:04:00]} {[%emt 00:00:08]} cxb4 {[%clk 00:02:37]} {[%emt 00:00:03]} 23. b7
{[%clk 00:03:29]} {[%emt 00:00:25]} Nd6 {[%clk 00:02:39]} 24. Qc6 {[%clk
00:03:04]} {[%emt 00:00:28]} g5 {[%clk 00:02:38]} {[%emt 00:00:05]} 25. Ra8
{[%clk 00:02:48]} {[%emt 00:00:18]} gxf4 {[%clk 00:02:36]} {[%emt 00:00:09]} 26.
Rxd8 {[%clk 00:02:48]} {[%emt 00:00:04]} Rxd8 {[%clk 00:02:38]} 27. Qc7 {[%clk
00:02:16]} {[%emt 00:00:33]} 1-0

[Event "Cerrado Blitz Quart 2018"]
[Site "Quart (Valencia), Spain"]
[Date "2018.08.30"]
[Round "6.2"]
[White "Galvan Cipriani, Viviana"]
[Black "Kovacevic, Slobodan"]
[Result "0-1"]
[TimeControl "7 minutos +3s por jugada"]
[WhiteTitle "WFM"]
[BlackTitle "IM"]
[WhiteFideId "32041144"]
[BlackFideId "902152"]
[WhiteElo "1948"]
[BlackElo "2418"]

1. c4 {[%clk 00:07:04]} {[%emt 00:00:08]} c5 {[%clk 00:07:05]} 2. Nc3 {[%clk
00:07:06]} Nf6 {[%clk 00:07:06]} 3. g3 {[%clk 00:07:07]} e6 {[%clk 00:07:09]}
{[%emt 00:00:08]} 4. e4 {[%clk 00:07:07]} {[%emt 00:00:08]} d6 {[%clk
00:07:10]} 5. Bg2 {[%clk 00:07:09]} a6 {[%clk 00:07:11]} 6. Nge2 {[%clk
00:07:09]} Qc7 {[%clk 00:07:12]} {[%emt 00:00:03]} 7. d3 {[%clk 00:07:09]} Nc6
{[%clk 00:07:14]} 8. O-O {[%clk 00:07:10]} {[%emt 00:00:04]} Rb8 {[%clk
00:07:17]} {[%emt 00:00:04]} 9. h3 {[%clk 00:07:09]} b5 {[%clk 00:07:17]}
{[%emt 00:00:07]} 10. b3 {[%clk 00:07:10]} {[%emt 00:00:03]} b4 {[%clk
00:07:16]} 11. Na4 {[%clk 00:07:11]} e5 {[%clk 00:07:18]} {[%emt 00:00:05]} 12.
Be3 {[%clk 00:07:12]} Nd4 {[%clk 00:07:16]} {[%emt 00:00:07]} 13. Kh2 {[%clk
00:07:11]} Be7 {[%clk 00:07:13]} {[%emt 00:00:04]} 14. Qd2 {[%clk 00:07:12]}
{[%emt 00:00:07]} Bd7 {[%clk 00:06:59]} {[%emt 00:00:12]} 15. Nb2 {[%clk
00:07:13]} {[%emt 00:00:10]} a5 {[%clk 00:07:01]} 16. f4 {[%clk 00:07:12]}
{[%emt 00:00:03]} O-O {[%clk 00:06:55]} {[%emt 00:00:06]} 17. f5 {[%clk
00:07:04]} {[%emt 00:00:14]} Qd8 {[%clk 00:06:57]} 18. g4 {[%clk 00:06:58]}
{[%emt 00:00:07]} h6 {[%clk 00:06:59]} 19. Ng3 {[%clk 00:06:54]} {[%emt
00:00:08]} Kh8 {[%clk 00:06:40]} {[%emt 00:00:20]} 20. Bxh6 {[%clk 00:05:56]}
{[%emt 00:01:01]} gxh6 {[%clk 00:06:41]} {[%emt 00:00:08]} 21. Qxh6+ {[%clk
00:05:56]} Nh7 {[%clk 00:06:42]} 22. Nh5 {[%clk 00:05:57]} Rg8 {[%clk
00:06:44]} 23. f6 {[%clk 00:05:23]} {[%emt 00:00:39]} Bf8 {[%clk 00:06:45]}
{[%emt 00:00:23]} 24. Qd2 {[%clk 00:05:04]} {[%emt 00:00:12]} Rg6 {[%clk
00:06:40]} {[%emt 00:00:07]} 25. Qf2 {[%clk 00:04:52]} {[%emt 00:00:38]} Bh6
{[%clk 00:06:34]} 26. Nd1 {[%clk 00:04:34]} {[%emt 00:00:03]} Ne6 {[%clk
00:06:24]} {[%emt 00:00:09]} 27. Ne3 {[%clk 00:04:12]} {[%emt 00:00:22]} Bf4+
{[%clk 00:06:15]} {[%emt 00:00:14]} 28. Kh1 {[%clk 00:03:58]} {[%emt 00:00:19]}
Nxf6 {[%clk 00:06:08]} {[%emt 00:00:10]} 29. Nf5 {[%clk 00:02:46]} {[%emt
00:01:11]} Nxh5 {[%clk 00:05:25]} {[%emt 00:00:45]} 30. gxh5 {[%clk 00:02:47]}
{[%emt 00:00:37]} Rg8 {[%clk 00:05:15]} 31. Nxd6 {[%clk 00:02:42]} Qe7 {[%clk
00:05:13]} 32. Nf5 {[%clk 00:02:37]} {[%emt 00:00:08]} Qf6 {[%clk 00:05:15]} 33.
Rab1 {[%clk 00:01:21]} {[%emt 00:01:13]} Rg5 {[%clk 00:05:07]} {[%emt
00:00:11]} 34. h6 {[%clk 00:01:17]} {[%emt 00:00:40]} Rbg8 {[%clk 00:05:05]} 35.
Bf3 {[%clk 00:00:57]} {[%emt 00:00:03]} Nd4 {[%clk 00:05:04]} {[%emt 00:00:07]}
36. Nxd4 {[%clk 00:00:27]} {[%emt 00:00:21]} cxd4 {[%clk 00:05:05]} {[%emt
00:00:34]} 37. Rg1 {[%clk 00:00:14]} {[%emt 00:00:04]} Be3 {[%clk 00:05:07]}
0-1

[Event "Cerrado Blitz Quart 2018"]
[Site "Quart (Valencia), Spain"]
[Date "2018.08.30"]
[Round "6.3"]
[White "Vega Gutierrez, Sabrina"]
[Black "Ordoñez Carrasco, Jorge"]
[Result "1-0"]
[TimeControl "7 minutos +3s por jugada"]
[WhiteTitle "IM"]
[WhiteFideId "2219026"]
[BlackFideId "24529826"]
[WhiteElo "2188"]
[BlackElo "1531"]

1. e4 {[%clk 00:07:03]} {[%emt 00:00:02]} c5 {[%clk 00:07:04]} {[%emt
00:00:02]} 2. Nf3 {[%clk 00:07:04]} {[%emt 00:00:02]} d6 {[%clk 00:07:05]}
{[%emt 00:00:03]} 3. d4 {[%clk 00:07:06]} {[%emt 00:00:01]} cxd4 {[%clk
00:07:05]} {[%emt 00:00:03]} 4. Nxd4 {[%clk 00:07:07]} {[%emt 00:00:02]} Nf6
{[%clk 00:07:06]} {[%emt 00:00:02]} 5. Nc3 {[%clk 00:07:08]} {[%emt 00:00:02]}
g6 {[%clk 00:07:07]} {[%emt 00:00:02]} 6. Bc4 {[%clk 00:07:08]} {[%emt
00:00:03]} Bg7 {[%clk 00:07:07]} {[%emt 00:00:03]} 7. O-O {[%clk 00:07:09]}
{[%emt 00:00:03]} O-O {[%clk 00:07:07]} {[%emt 00:00:03]} 8. Re1 {[%clk
00:07:08]} {[%emt 00:00:03]} Nfd7 {[%clk 00:06:37]} {[%emt 00:00:33]} 9. a4
{[%clk 00:06:56]} {[%emt 00:00:15]} Nc6 {[%clk 00:06:20]} {[%emt 00:00:21]} 10.
Nb3 {[%clk 00:06:56]} {[%emt 00:00:02]} a6 {[%clk 00:05:52]} {[%emt 00:00:32]}
11. Bf1 {[%clk 00:06:50]} {[%emt 00:00:08]} Nf6 {[%clk 00:05:05]} {[%emt
00:00:50]} 12. Nd5 {[%clk 00:06:28]} {[%emt 00:00:25]} Nxd5 {[%clk 00:04:50]}
{[%emt 00:00:18]} 13. exd5 {[%clk 00:06:29]} {[%emt 00:00:02]} Ne5 {[%clk
00:04:43]} {[%emt 00:00:10]} 14. Be3 {[%clk 00:06:15]} {[%emt 00:00:17]} Qc7
{[%clk 00:04:11]} {[%emt 00:00:35]} 15. Bd4 {[%clk 00:06:04]} {[%emt 00:00:15]}
Bf5 {[%clk 00:03:35]} {[%emt 00:00:39]} 16. c3 {[%clk 00:06:04]} {[%emt
00:00:02]} Rfe8 {[%clk 00:03:26]} {[%emt 00:00:13]} 17. h3 {[%clk 00:04:36]}
{[%emt 00:01:31]} h5 {[%clk 00:03:13]} {[%emt 00:00:16]} 18. f4 {[%clk
00:04:23]} {[%emt 00:00:16]} Nc4 {[%clk 00:02:41]} {[%emt 00:00:35]} 19. Bxg7
{[%clk 00:04:20]} {[%emt 00:00:05]} Kxg7 {[%clk 00:02:43]} 20. Qd4+ {[%clk
00:04:19]} {[%emt 00:00:05]} 1-0